bitfinex-derivatives/quotes_SOLF0:USTF0_20241029
["timestamp","ask_amount","ask_price","bid_price","bid_amount"]
[1730210676416,2.7671,180.78,180.73,2.7677]
[1730210677221,2.7673,180.77,180.67,39.90310005]
[1730210677415,9.18931258,180.8,180.67,39.90310005]
[1730210677619,3.85541258,180.81,180.71,37.43180005]
[1730210677820,2.7666,180.81,180.76,2.7673]
[1730210678013,9.14751258,180.82,180.76,2.7673]
[1730210678214,2.767,180.79,180.74,2.7675]
[1730210679321,2.56471258,180.81,180.72,2.7678]
[1730210679516,6.99246001,180.81,180.71,5.32]
[1730210679709,2.7671,180.77,180.71,5.32]
[1730210679908,2.56471258,180.81,180.73,2.7676]
[1730210680223,2.56471258,180.8,180.71,5.32]
[1730210680517,2.56471258,180.8,180.67,2.4713]
[1730210680518,2.56471258,180.79,180.67,1.2398]
[1730210680722,2.56471258,180.78,180.67,1.2398]
[1730210680919,5.32,180.77,180.67,1.2398]
[1730210681112,6.5783,180.77,180.67,1.2398]
[1730210681307,9.14301258,180.77,180.63,37.43180005]
[1730210681524,6.99329343,180.76,180.62,5.32]
[1730210681711,2.56471258,180.75,180.62,5.32]
[1730210682015,2.7685,180.69,180.65,2.7688]
[1730210682212,5.32,180.71,180.62,5.32]
[1730210682516,5.32,180.71,180.59,2.465]
[1730210682717,1.238,180.7,180.59,2.465]
[1730210682918,1.238,180.7,180.62,2.7693]
[1730210683224,1.238,180.7,180.59,2.465]
[1730210683423,2.7687,180.67,180.63,2.7692]
[1730210683623,1.238,180.7,180.59,2.465]
[1730210683825,1.238,180.7,180.57,5.32]
[1730210684121,4.03181978,180.7,180.54,2.4889]
[1730210684322,6.98606731,180.69,180.52,1.2441]
[1730210684626,6.98606731,180.69,180.47,300.01163689]
[1730210684627,2.56471258,180.65,180.48,2.4889]
[1730210684821,2.56471258,180.65,180.48,1.246]
[1730210684822,9.10911258,180.64,180.48,1.246]
[1730210685021,9.10911258,180.64,180.49,2.7714]
[1730210685022,2.56471258,180.62,180.49,2.7714]
[1730210685323,38.66980005,180.61,180.43,42.75180005]
[1730210685522,38.66980005,180.61,180.44,2.7721]
[1730210685523,2.7715,180.49,180.44,2.7721]
[1730210685731,5.32,180.5,180.39,37.43180005]
[1730210686513,5.32,180.5,180.37,1.3226]
[1730210686722,2.47,180.49,180.37,1.3226]
[1730210687324,2.47,180.49,180.38,2.7731]
[1730210687521,2.47,180.49,180.36,2.4577]
[1730210688229,2.7722,180.44,180.39,2.7729]
[1730210688442,8.0922,180.44,180.39,2.7729]
[1730210688739,5.2416,180.49,180.36,1.2429]
[1730210688941,5.32,180.48,180.37,1.2554]
[1730210689135,2.47,180.49,180.41,2.7726]
[1730210689339,7.79,180.49,180.39,37.43180005]
[1730210690442,7.79,180.49,180.45,2.772]
[1730210690643,5.32,180.51,180.39,42.75180005]
[1730210690938,2.7707,180.54,180.46,2.7718]
[1730210691144,2.5671,180.56,180.43,37.43180005]
[1730210691442,1.3015,180.56,180.47,37.43180005]
[1730210691640,1.2145,180.57,180.47,37.43180005]
[1730210692537,1.2145,180.57,180.47,38.65230005]
[1730210693248,2.7708,180.54,180.48,2.7715]
[1730210693541,1.2145,180.57,180.47,38.65230005]
[1730210694047,2.7705,180.55,180.49,2.7713]
[1730210694541,2.7705,180.55,180.47,38.65230005]
[1730210694732,1.2145,180.57,180.47,38.65230005]
[1730210695742,1.2145,180.57,180.43,37.43180005]
[1730210695944,1.2145,180.57,180.39,37.43180005]
[1730210697348,2.7712,180.51,180.39,37.43180005]
[1730210698450,5.5,180.52,180.39,37.43180005]
[1730210698850,5.5,180.51,180.42,2.7724]
[1730210699037,2.7719,180.47,180.42,2.7724]
[1730210699239,5.5,180.51,180.39,2.7728]
[1730210699550,2.7722,180.45,180.37,6.8255]
[1730210700148,1.1996,180.5,180.37,6.8255]
[1730210700346,1.1996,180.5,180.37,1.3255]
[1730210700544,1.1996,180.5,180.36,4.0163]
[1730210700750,1.1996,180.5,180.31,37.43180005]
[1730210700946,16.63,180.49,180.31,37.43180005]
[1730210701145,2.7731,180.38,180.34,2.7737]
[1730210701340,5.5,180.4,180.3,5.5]
[1730210701744,2.7731,180.38,180.3,5.5]
[1730210702145,2.7731,180.38,180.32,2.774]
[1730210702345,5.5,180.4,180.28,1.2026]
[1730210702749,1.2962,180.39,180.28,1.2026]
[1730210703052,2.585,180.39,180.27,2.4068]
[1730210703552,2.7739,180.34,180.27,2.4068]
[1730210703748,5.5,180.36,180.3,2.7743]
[1730210703945,1.2962,180.39,180.28,37.43180005]
[1730210704153,5.5,180.4,180.28,42.93180005]
[1730210705344,5.5,180.4,180.28,37.43180005]
[1730210705757,2.773,180.39,180.28,37.43180005]
[1730210705957,5.5,180.4,180.34,2.7737]
[1730210706653,2.7731,180.39,180.34,2.7737]
[1730210706958,5.5,180.4,180.32,2.7739]
[1730210707143,2.7735,180.36,180.28,37.43180005]
[1730210707350,5.5,180.4,180.32,2.7739]
[1730210707660,5.5,180.4,180.28,37.43180005]
[1730210707956,5.5,180.4,180.27,2.7748]
[1730210708153,5.5,180.4,180.23,38.73370005]
[1730210708955,2.7743,180.31,180.23,38.73370005]
[1730210709257,59.9,180.41,180.24,2.7752]
[1730210709258,5.5,180.32,180.24,2.7752]
[1730210709458,97.33180005,180.41,180.22,2.5592]
[1730210709459,5.5,180.31,180.22,2.5592]
[1730210709851,5.5,180.31,180.25,2.775]
[1730210710058,5.5,180.31,180.22,2.5592]
[1730210710357,5.5,180.31,180.26,2.775]
[1730210710755,2.7746,180.29,180.25,2.7751]
[1730210710955,2.7746,180.29,180.22,2.5592]
[1730210711250,2.7746,180.29,180.24,2.7752]
[1730210711468,2.7748,180.28,180.2,1.2838]
[1730210711652,5.5,180.31,180.15,37.43180005]
[1730210711957,3.7358,180.3,180.15,37.43180005]
[1730210712365,2.7753,180.25,180.2,2.7758]
[1730210712549,2.7753,180.25,180.15,37.43180005]
[1730210712550,5.5,180.25,180.15,37.43180005]
[1730210712754,5.52,180.26,180.15,37.43180005]
[1730210713654,2.7755,180.23,180.15,37.43180005]
[1730210714067,2.7755,180.23,180.18,2.776]
[1730210714360,2.7757,180.22,180.15,37.43180005]
[1730210714563,5.52,180.21,180.17,2.7762]
[1730210715566,5.52,180.21,180.14,2.7767]
[1730210715757,5.52,180.21,180.13,2.5842]
[1730210716059,5.52,180.21,180.15,2.7765]
[1730210716565,5.52,180.21,180.09,1.3069]
[1730210716566,5.52,180.21,180.1,2.7773]
[1730210716751,1.2148,180.2,180.09,1.3069]
[1730210716957,3.6934,180.2,180.09,1.3069]
[1730210717256,5.52,180.21,180.09,1.3069]
[1730210717958,5.52,180.21,180.04,8.1298]
[1730210718461,5.52,180.21,180.08,2.7777]
[1730210718770,5.52,180.21,180.04,2.6098]
[1730210718970,5.52,180.21,180.01,1.2492]
[1730210718971,59.58180005,180.21,180.06,2.778]
[1730210719169,2.7767,180.15,180.01,1.2492]
[1730210719360,9.3011,180.14,180.01,1.2492]
[1730210719560,12.05158878,180.14,180.03,2.7785]
[1730210719870,12.05158878,180.14,179.96,37.43180005]
[1730210720057,12.05158878,180.14,180.01,2.7787]
[1730210720259,2.7777,180.09,179.96,37.43180005]
[1730210720455,5.52,180.08,179.96,37.43180005]
[1730210720662,5.52,180.07,180.0,2.7789]
[1730210721065,2.7782,180.05,180.0,2.7789]
[1730210721265,2.7782,180.05,179.95,2.553]
[1730210721664,5.52,180.07,179.95,2.553]
[1730210722468,5.52,180.07,179.89,1.2848]
[1730210722671,5.52,180.07,179.9,1.327]
[1730210722869,2.779,180.01,179.95,2.7796]
[1730210723072,5.46,180.0,179.9,1.327]
[1730210723273,5.46,179.99,179.9,1.327]
[1730210723470,2.83882837,180.04,179.92,2.7802]
[1730210723471,2.7794,179.97,179.92,2.7802]
[1730210723770,5.46,179.96,179.9,1.327]
[1730210724870,2.7788,180.02,179.95,2.7797]
[1730210725073,5.46,180.01,179.9,1.327]
[1730210725478,2.779,180.0,179.94,2.7798]
[1730210725772,2.779,180.0,179.9,1.327]
[1730210725773,5.46,180.01,179.9,1.327]
[1730210726372,16.63,180.19,179.96,37.43180005]
[1730210726572,1.2703,180.13,180.05,37.43180005]
[1730210726766,54.05180005,180.26,179.9,38.75880005]
[1730210726767,2.4846,180.32,180.12,37.43180005]
[1730210726963,5.2588,180.32,180.25,2.7751]
[1730210727162,5.2588,180.32,180.18,37.43180005]
[1730210727163,2.4846,180.32,180.18,42.89180005]
[1730210727963,5.46,180.31,180.18,42.89180005]
[1730210729075,5.46,180.31,180.26,2.7749]
[1730210729269,5.46,180.31,180.18,37.43180005]
[1730210729467,5.46,180.31,180.18,42.89180005]
[1730210729668,8.2343,180.31,180.21,2.7756]
[1730210729975,5.46,180.31,180.21,37.43180005]
[1730210730382,5.46,180.31,180.26,2.7749]
[1730210730571,5.46,180.31,180.21,37.43180005]
[1730210730881,5.46,180.37,180.28,2.7746]
[1730210731179,1.2957,180.4,180.25,37.43180005]
[1730210731180,5.46,180.36,180.25,37.43180005]
[1730210731364,8.2336,180.36,180.25,37.43180005]
[1730210731565,5.46,180.36,180.25,37.43180005]
[1730210731775,5.46,180.36,180.21,37.43180005]
[1730210732477,5.46,180.36,180.22,2.7756]
[1730210732773,5.46,180.36,180.21,37.43180005]
[1730210732975,2.7741,180.32,180.22,2.7756]
[1730210733179,16.63,180.39,180.21,37.43180005]
[1730210733180,5.46,180.31,180.21,37.43180005]
[1730210733379,5.46,180.3,180.21,37.43180005]
[1730210733580,8.2344,180.3,180.22,2.7754]
[1730210733779,5.46,180.3,180.21,37.43180005]
[1730210734075,5.46,180.29,180.23,2.7753]
[1730210734280,5.46,180.29,180.21,37.43180005]
[1730210735579,5.46,180.29,180.25,2.7751]
[1730210736281,5.46,180.29,180.21,37.43180005]
[1730210737682,2.7745,180.3,180.23,2.7753]
[1730210737868,5.44,180.29,180.21,37.43180005]
[1730210738275,2.7727,180.41,180.31,2.7741]
[1730210738473,6.732,180.49,180.33,37.43180005]
[1730210738870,23.352,180.49,180.29,37.43180005]
[1730210739270,2.773,180.39,180.33,2.7738]
[1730210739483,5.44,180.38,180.29,37.43180005]
[1730210740883,2.7734,180.37,180.31,2.7741]
[1730210741183,5.44,180.38,180.29,37.43180005]
[1730210742879,5.44,180.38,180.28,2.7746]
[1730210743278,2.7739,180.34,180.28,2.7746]
[1730210743482,5.44,180.33,180.26,2.7749]
[1730210743783,5.44,180.33,180.24,1.2456]
[1730210743985,5.44,180.33,180.24,2.7753]
[1730210744184,5.44,180.33,180.2,5.44]
[1730210744392,2.7752,180.25,180.17,37.43180005]
[1730210744589,5.44,180.25,180.16,2.4795]
[1730210745084,2.7754,180.24,180.16,2.4795]
[1730210745279,5.44,180.25,180.16,2.4795]
[1730210745779,95.97845052,180.33,180.21,37.43180005]
[1730210745780,5.44,180.29,180.21,37.43180005]
[1730210746186,5.44,180.29,180.25,37.43180005]
[1730210746381,3.6931,180.37,180.25,37.43180005]
[1730210746577,5.44,180.38,180.29,37.43180005]
[1730210747380,5.44,180.38,180.33,2.7739]
[1730210747780,5.44,180.38,180.29,37.43180005]
[1730210748283,59.96,180.42,180.29,37.43180005]
[1730210748480,5.44,180.41,180.29,37.43180005]
[1730210748876,2.7729,180.4,180.35,2.7736]
[1730210749286,8.2127,180.41,180.35,2.7735]
[1730210749492,5.44,180.41,180.29,37.43180005]
[1730210749985,5.44,180.41,180.32,2.774]
[1730210750186,5.44,180.41,180.29,37.43180005]
[1730210750581,8.2128,180.41,180.29,37.43180005]
[1730210750982,8.2128,180.41,180.35,2.7735]
[1730210751178,8.2128,180.41,180.29,37.43180005]
[1730210751585,2.773,180.39,180.29,37.43180005]
[1730210751780,5.44,180.41,180.29,37.43180005]
[1730210752089,5.44,180.41,180.34,2.7736]
[1730210752589,5.44,180.41,180.33,2.7738]
[1730210752981,5.44,180.41,180.29,37.43180005]
[1730210753291,2.7736,180.36,180.31,2.7742]
[1730210753689,5.44,180.41,180.27,9.4074]
[1730210753882,5.44,180.41,180.27,3.7674]
[1730210754788,2.7733,180.37,180.31,2.7742]
[1730210754996,5.44,180.41,180.27,3.7674]
[1730210755590,2.7732,180.38,180.27,3.7674]
[1730210755986,2.7732,180.38,180.33,2.7738]
[1730210756888,2.7733,180.38,180.33,2.7738]
[1730210757087,2.7733,180.38,180.34,2.7736]
[1730210758293,5.44,180.41,180.27,3.7674]
[1730210758599,2.7734,180.37,180.33,2.7739]
[1730210758996,2.7733,180.37,180.31,2.7742]
[1730210759297,5.64,180.36,180.27,3.7674]
[1730210759503,5.64,180.36,180.27,1.2901]
[1730210759800,2.7743,180.31,180.27,2.7748]
[1730210760095,2.7744,180.3,180.26,2.7749]
[1730210760300,5.64,180.31,180.23,1.2307]
[1730210761502,2.7747,180.28,180.23,4.006]
[1730210761702,5.64,180.31,180.23,2.7753]
[1730210762194,5.64,180.31,180.21,2.7756]
[1730210762393,5.64,180.31,180.18,1.3011]
[1730210762701,2.4517,180.3,180.18,1.3011]
[1730210763086,2.7749,180.27,180.18,1.3011]
[1730210763290,5.64,180.26,180.18,1.3011]
[1730210763486,5.64,180.26,180.22,2.7755]
[1730210764092,5.64,180.26,180.19,2.7759]
[1730210764293,5.64,180.26,180.16,2.513]
[1730210764494,5.64,180.26,180.08,2.5412]
[1730210764702,1.2301,180.25,180.14,2.7767]
[1730210765298,1.2301,180.25,180.08,2.4373]
[1730210765687,2.7758,180.21,180.14,2.7767]
[1730210765897,5.66,180.24,180.08,2.4373]
[1730210765898,22.29,180.24,180.08,2.4373]
[1730210766098,1.3238,180.2,180.08,2.4373]
[1730210766295,5.66,180.19,180.08,2.4373]
[1730210766496,5.66,180.19,180.08,1.2125]
[1730210766693,1.2857,180.18,180.07,1.3164]
[1730210766898,1.2857,180.18,180.1,2.7774]
[1730210767398,1.2857,180.18,180.03,37.43180005]
[1730210767900,2.7767,180.15,180.09,2.7776]
[1730210768100,5.66,180.14,180.03,37.43180005]
[1730210768492,5.66,180.14,180.07,2.7778]
[1730210768690,5.66,180.14,180.03,37.43180005]
[1730210768989,5.66,180.16,180.12,2.777]
[1730210769489,5.66,180.16,180.13,2.7769]
[1730210769694,5.66,180.16,180.06,37.43180005]
[1730210770899,2.7764,180.17,180.06,37.43180005]
[1730210770900,1.3238,180.2,180.15,2.7767]
[1730210771196,3.85990528,180.24,180.1,37.43180005]
[1730210771402,1.2891,180.24,180.1,37.43180005]
[1730210771700,5.66,180.23,180.11,2.5179]
[1730210771895,2.57106246,180.27,180.21,2.7756]
[1730210771896,5.66,180.22,180.21,2.7756]
[1730210772095,5.66,180.22,180.06,37.43180005]
[1730210772296,5.66,180.22,180.08,1.2799]
[1730210772503,2.776,180.2,180.08,1.2799]
[1730210772891,5.66,180.22,180.08,1.2799]
[1730210773093,1.1979,180.21,180.08,1.2799]
[1730210773292,17.8279,180.21,180.07,1.2244]
[1730210773500,20.39896246,180.21,180.04,1.2935]
[1730210773695,16.63,180.17,180.04,1.2935]
[1730210773891,8.1219,180.16,180.03,1.2401]
[1730210774297,84.7319,180.16,179.99,1.2935]
[1730210774704,16.63,180.13,179.94,37.43180005]
[1730210775296,2.7779,180.07,179.94,37.43180005]
[1730210775492,5.66,180.06,179.94,37.43180005]
[1730210776001,8.4381,180.06,180.0,2.7789]
[1730210776398,4.04808484,180.05,180.0,2.7789]
[1730210776604,4.04808484,180.04,180.0,2.7789]
[1730210776805,4.04808484,180.03,180.0,2.7789]
[1730210777103,4.04808484,180.02,179.94,37.43180005]
[1730210777307,5.66,180.06,180.01,2.7788]
[1730210777502,1.2814,180.11,179.98,37.43180005]
[1730210777503,4.04660491,180.05,179.98,37.43180005]
[1730210777709,5.66,180.09,179.98,37.43180005]
[1730210777907,4.04602781,180.08,180.02,37.43180005]
[1730210778110,4.04602781,180.07,180.03,2.5042]
[1730210778311,4.04602781,180.06,180.03,2.5042]
[1730210778499,4.04602781,180.05,180.03,3.778]
[1730210778697,5.66,180.09,180.03,3.778]
[1730210778898,4.04492698,180.08,180.06,2.778]
[1730210779108,4.04492698,180.07,180.03,3.778]
[1730210779307,4.04492698,180.06,179.98,43.09180005]
[1730210779510,4.04492698,180.05,179.98,43.09180005]
[1730210779711,5.66,180.09,179.98,43.09180005]
[1730210779913,4.04428039,180.08,179.98,43.09180005]
[1730210780210,5.66,180.09,179.98,5.66]
[1730210780211,4.04428039,180.07,179.98,5.66]
[1730210780404,4.04428039,180.06,179.98,5.66]
[1730210780606,5.66,180.09,179.94,43.09180005]
[1730210780808,4.0441844,180.08,179.94,43.09180005]
[1730210781615,4.0441844,180.07,179.94,43.09180005]
[1730210781813,5.66,180.08,180.06,2.7781]
[1730210782005,4.04255014,180.07,179.99,5.56]
[1730210782316,5.56,180.11,179.99,5.56]
[1730210782515,4.04140064,180.1,179.98,37.43180005]
[1730210782713,4.04140064,180.09,179.98,37.43180005]
[1730210783021,4.04140064,180.08,180.05,2.7782]
[1730210783214,4.04140064,180.07,179.98,37.43180005]
[1730210783514,5.56,180.11,180.07,2.7777]
[1730210783724,4.04070506,180.1,180.02,37.43180005]
[1730210783908,4.04070506,180.09,180.03,3.8031]
[1730210784110,4.04070506,180.08,180.07,2.7779]
[1730210784308,5.56,180.11,180.03,3.8031]
[1730210784506,4.03996991,180.1,180.03,3.8031]
[1730210784719,4.03996991,180.09,180.04,2.7782]
[1730210785019,5.56,180.11,180.03,3.8031]
[1730210785213,5.56,180.15,180.11,2.7772]
[1730210785415,4.04017183,180.1,180.03,3.8031]
[1730210785717,5.56,180.15,180.12,2.777]
[1730210785919,4.0389179,180.14,180.06,42.99180005]
[1730210786221,4.0389179,180.13,180.06,5.56]
[1730210786422,4.0389179,180.12,180.09,2.7775]
[1730210786626,4.0389179,180.12,180.03,3.8031]
[1730210786627,4.0389179,180.11,180.03,3.8031]
[1730210786920,76.05632088,180.21,180.03,6.5816]
[1730210786921,9.5989179,180.1,180.03,6.5816]
[1730210787109,4.0389179,180.09,180.03,6.5816]
[1730210787310,6.8165179,180.09,180.04,2.7783]
[1730210787509,9.5989179,180.08,179.96,6.8142]
[1730210787716,9.5989179,180.07,179.96,6.8142]
[1730210788014,4.0389179,180.06,179.96,6.8142]
[1730210788416,4.0389179,180.06,180.03,2.7785]
[1730210788610,4.0389179,180.06,179.96,6.8142]
[1730210788611,4.03989279,180.05,179.96,6.8142]
[1730210788812,4.03989279,180.04,179.96,6.8142]
[1730210789018,5.56,180.07,179.96,6.8142]
[1730210789319,6.81773816,180.06,180.01,2.7788]
[1730210789519,4.03963816,180.05,180.01,2.7788]
[1730210789918,6.81803816,180.05,179.99,2.7791]
[1730210790227,4.03963816,180.04,179.91,42.99180005]
[1730210790407,2.7787,180.02,179.97,2.7794]
[1730210790609,2.7787,180.02,179.92,1.2002]
[1730210790610,4.03963816,180.01,179.92,1.2002]
[1730210791008,4.03963816,180.01,179.95,2.7796]
[1730210791206,4.03963816,180.01,179.92,1.2002]
[1730210791717,4.03963816,180.01,179.97,2.7793]
[1730210792117,4.03963816,180.01,179.98,2.7792]
[1730210792319,4.03963816,180.01,179.92,1.2002]
[1730210792913,4.03963816,180.01,179.99,2.779]
[1730210793523,4.03963816,180.01,180.0,2.779]
[1730210794919,4.03963816,180.03,180.0,2.779]
[1730210795121,4.03963816,180.02,180.0,2.779]
[1730210795419,5.56,180.04,180.0,2.779]
[1730210795633,4.04538916,180.03,180.0,2.779]
[1730210795926,4.04538916,180.02,180.0,2.779]
[1730210796118,4.04538916,180.01,180.0,2.779]
[1730210798025,4.04538916,180.01,179.92,1.2002]
[1730210798228,4.04538916,180.0,179.92,1.2002]
[1730210798426,4.04538916,179.99,179.92,1.2002]
[1730210798724,5.56,180.04,179.92,1.2002]
[1730210799833,5.56,180.04,179.89,2.5288]
[1730210800031,5.56,180.04,179.9,38.73450005]
[1730210800324,2.7785,180.03,179.98,2.7792]
[1730210800517,5.56,180.04,179.98,2.7792]
[1730210801121,5.56,180.04,179.96,2.7795]
[1730210801122,2.779,180.0,179.96,2.7795]
[1730210801321,5.56,179.99,179.83,5.5632]
[1730210801522,5.56,179.98,179.83,5.5632]
[1730210801721,8.3395,179.97,179.83,5.5632]
[1730210801920,5.56,179.97,179.83,5.5632]
[1730210802117,2.7796,179.96,179.91,2.7803]
[1730210802629,5.56,179.97,179.83,5.5632]
[1730210803218,8.3395,179.97,179.87,2.781]
[1730210803423,8.3395,179.97,179.83,5.5632]
[1730210803424,5.56,179.97,179.83,5.5632]
[1730210803827,5.56,179.97,179.92,2.7801]
[1730210804533,6.8386,179.97,179.92,2.7801]
[1730210805137,2.7796,179.96,179.91,2.7803]
[1730210805636,9.6181,179.97,179.91,2.7803]
[1730210806429,9.6181,179.97,179.92,2.7802]
[1730210807239,2.7792,179.99,179.84,5.5629]
[1730210807426,5.56,179.98,179.84,5.5629]
[1730210807932,5.56,179.98,179.95,2.7796]
[1730210808238,8.3393,179.98,179.94,2.7799]
[1730210808537,8.3393,179.98,179.85,42.99440005]
[1730210808538,5.56,179.98,179.85,42.99440005]
[1730210808736,8.3393,179.98,179.88,2.7807]
[1730210808924,8.3393,179.98,179.85,42.99440005]
[1730210809331,8.3393,179.98,179.93,2.7799]
[1730210809828,8.3393,179.98,179.86,5.5623]
[1730210809829,5.56,179.98,179.86,5.5623]
[1730210810028,5.56,179.98,179.96,2.7795]
[1730210810443,5.56,179.98,179.87,6.7878]
[1730210810743,5.56,179.98,179.95,2.7797]
[1730210811124,5.56,179.98,179.87,6.7878]
[1730210811330,2.7795,179.97,179.87,6.7878]
[1730210811842,5.56,179.98,179.9,2.7804]
[1730210812034,1.2374,179.96,179.84,5.4]
[1730210812339,1.2374,179.96,179.91,2.7803]
[1730210812733,1.2374,179.96,179.84,5.4]
[1730210812937,5.56,179.98,179.84,5.4]
[1730210813431,2.7794,179.97,179.88,2.7808]
[1730210813628,1.2374,180.01,179.86,37.43180005]
[1730210813830,1.2094,180.03,179.84,5.4]
[1730210814032,5.4,180.02,179.9,37.43180005]
[1730210814441,2.7789,180.01,179.96,2.7795]
[1730210814629,5.4,180.02,179.91,1.2399]
[1730210814831,5.4,180.02,179.92,1.2422]
[1730210815740,8.1788,180.02,179.97,2.7793]
[1730210815939,5.4,180.02,179.92,1.2422]
[1730210816536,8.1787,180.02,179.97,2.7793]
[1730210816741,5.4,180.02,179.91,2.4555]
[1730210817039,5.4,180.02,179.93,2.78]
[1730210817040,2.7792,179.99,179.93,2.78]
[1730210817344,5.4,180.02,179.93,2.78]
[1730210817641,2.7795,179.97,179.92,2.7802]
[1730210817839,5.4,179.96,179.87,5.4]
[1730210818142,5.4,179.96,179.92,2.7801]
[1730210818336,5.4,179.96,179.87,5.4]
[1730210818934,5.4,179.96,179.86,37.43180005]
[1730210819134,8.1797,179.96,179.91,2.7803]
[1730210819338,5.4,179.96,179.84,1.2037]
[1730210819738,2.7801,179.93,179.89,2.7807]
[1730210819934,5.4,179.96,179.89,2.7807]
[1730210820241,2.7802,179.93,179.88,2.7808]
[1730210820944,5.4,179.96,179.9,2.7804]
[1730210821143,5.4,179.96,179.84,1.2037]
[1730210821740,1.3004,179.95,179.84,1.2037]
[1730210821940,5.4,179.96,179.84,1.2037]
[1730210822446,1.261,179.99,179.84,1.2037]
[1730210822447,2.7798,179.95,179.9,2.7805]
[1730210822643,5.4,179.95,179.84,1.2037]
[1730210822944,2.7802,179.92,179.87,2.7809]
[1730210823635,5.4,179.95,179.84,1.2037]
[1730210824351,5.4,179.95,179.91,2.7803]
[1730210824548,1.261,179.99,179.84,1.2037]
[1730210824859,5.4,179.98,179.86,37.43180005]
[1730210825048,1.261,179.99,179.86,42.83180005]
[1730210825242,5.4,179.98,179.86,42.83180005]
[1730210825437,5.4,179.98,179.94,2.7798]
[1730210825640,5.4,180.06,179.91,5.4]
[1730210825943,5.4,180.06,180.03,2.7784]
[1730210826144,5.4,180.07,180.03,2.7784]
[1730210827248,5.4,180.07,180.04,2.7782]
[1730210827654,1.2611,180.08,179.95,1.2388]
[1730210828356,5.4,180.09,179.95,1.2388]
[1730210828748,5.4,180.09,179.99,2.7791]
[1730210828749,8.1777,180.09,179.99,2.7791]
[1730210828942,8.1777,180.09,179.95,1.2388]
[1730210829251,5.4,180.09,179.95,1.2388]
[1730210829851,2.7779,180.07,180.01,2.7788]
[1730210830246,5.4,180.09,179.95,1.2388]
[1730210830562,1.3207,180.12,179.98,37.43180005]
[1730210830860,1.3207,180.12,179.99,6.7247]
[1730210832551,1.3207,180.12,180.07,2.7778]
[1730210832752,1.3207,180.12,179.99,6.7247]
[1730210832954,2.7775,180.1,180.04,2.7782]
[1730210833147,1.3207,180.12,179.99,6.7247]
[1730210834251,2.7775,180.1,180.04,2.7782]
[1730210834452,1.3207,180.12,179.99,6.7247]
[1730210836266,1.3207,180.12,180.06,2.778]
[1730210836662,5.4,180.13,180.03,2.7785]
[1730210836862,5.4,180.13,179.99,6.7247]
[1730210837362,2.57106246,180.2,179.99,6.7247]
[1730210837363,10.77568909,180.2,180.14,2.7767]
[1730210837565,5.4,180.22,180.14,2.7767]
[1730210837566,6.6022,180.22,180.14,2.7767]
[1730210837860,6.6022,180.22,180.09,5.4]
[1730210838053,2.7761,180.19,180.14,2.7768]
[1730210838253,6.6022,180.22,180.14,2.7768]
[1730210838464,2.7762,180.19,180.13,2.7769]
[1730210838857,6.6022,180.22,180.09,5.4]
[1730210839256,6.6022,180.22,180.11,37.43180005]
[1730210839662,9.3778,180.22,180.11,37.43180005]
[1730210840372,6.6022,180.22,180.1,5.4]
[1730210840869,6.6022,180.22,180.15,2.7765]
[1730210841066,6.6022,180.22,180.1,5.4]
[1730210841067,2.7759,180.21,180.1,5.4]
[1730210841664,2.7759,180.2,180.1,5.4]